bitfinex-derivatives/quotes_BTCF0:USTF0_20241227
["timestamp","ask_amount","ask_price","bid_price","bid_amount"]
[1735337583077,0.15710253,94445.0,94444.0,0.3608]
[1735337583283,0.15710253,94445.0,94444.0,0.413818]
[1735337584494,0.05459657,94462.0,94454.0,0.053012]
[1735337584692,0.05459657,94462.0,94455.0,0.3608]
[1735337584888,0.00158857,94462.0,94461.0,0.053008]
[1735337587082,0.00158857,94462.0,94461.0,0.054008]
[1735337587284,0.00158857,94462.0,94461.0,0.055008]
[1735337587984,0.05459657,94462.0,94461.0,0.002]
[1735337590789,0.41539657,94462.0,94461.0,0.002]
[1735337590996,0.71539657,94462.0,94443.0,0.3608]
[1735337591297,0.053017,94445.0,94443.0,0.3608]
[1735337593797,0.053017,94445.0,94443.0,0.3618]
[1735337594794,0.053017,94445.0,94443.0,0.3608]
[1735337595007,0.054017,94445.0,94443.0,0.3618]
[1735337595392,0.055017,94445.0,94443.0,0.3618]
[1735337595895,0.055017,94445.0,94443.0,0.001]
[1735337598803,0.002,94445.0,94444.0,0.053018]
[1735337599302,0.00158857,94462.0,94458.0,0.053009]
[1735337599508,0.00158857,94462.0,94459.0,1.8608]
[1735337599693,0.00158857,94462.0,94459.0,0.3608]
[1735337599893,0.00158857,94462.0,94461.0,0.053008]
[1735337601605,0.00158857,94462.0,94461.0,0.054008]
[1735337603606,0.053003,94471.0,94461.0,0.001]
[1735337603803,0.053003,94471.0,94469.0,0.053003]
[1735337605294,0.053003,94471.0,94469.0,0.054003]
[1735337607306,0.052999,94478.0,94471.0,0.053002]
[1735337607508,0.16640744,94489.0,94471.0,0.053002]
[1735337607709,0.053,94476.0,94471.0,0.053002]
[1735337608712,0.053,94476.0,94471.0,0.001]
[1735337608903,0.12540744,94488.0,94471.0,0.001]
[1735337609099,0.052996,94483.0,94478.0,0.10825139]
[1735337609304,0.052997,94482.0,94477.0,0.052999]
[1735337609610,0.12540744,94488.0,94476.0,0.3608]
[1735337609911,0.052999,94477.0,94476.0,0.3608]
[1735337610604,0.053001,94474.0,94471.0,0.001]
[1735337610912,0.053001,94474.0,94470.0,0.413803]
[1735337613111,0.053001,94474.0,94470.0,0.414803]
[1735337616609,0.053001,94474.0,94471.0,0.053002]
[1735337617308,0.052998,94479.0,94477.0,0.052999]
[1735337617714,0.052998,94479.0,94478.0,0.3608]
[1735337618601,0.12540744,94485.0,94478.0,0.3608]
[1735337618803,0.12540744,94485.0,94481.0,0.052997]
[1735337619407,0.052994,94486.0,94481.0,0.052997]
[1735337619602,0.04358817,94490.0,94481.0,0.052997]
[1735337619814,0.052995,94484.0,94481.0,0.052997]
[1735337620018,0.052995,94484.0,94481.0,0.053997]
[1735337620421,0.052995,94484.0,94481.0,0.054997]
[1735337622217,0.052995,94484.0,94481.0,0.053997]
[1735337623516,0.052996,94483.0,94481.0,0.053997]
[1735337623819,0.052996,94483.0,94481.0,0.052997]
[1735337624011,0.052996,94483.0,94481.0,0.053997]
[1735337624913,0.052996,94483.0,94481.0,0.07050468]
[1735337625319,0.052996,94483.0,94481.0,0.001]
[1735337625514,0.052996,94483.0,94481.0,0.00025345]
[1735337625817,0.052998,94479.0,94478.0,0.37726428]
[1735337626611,0.052998,94479.0,94478.0,0.01646428]
[1735337626811,0.052998,94479.0,94478.0,0.001]
[1735337629228,0.053005,94467.0,94466.0,0.19041445]
[1735337630416,0.054005,94467.0,94466.0,0.19141445]
[1735337630623,0.054005,94467.0,94466.0,0.001]
[1735337632922,0.21173325,94467.0,94466.0,0.001]
[1735337634420,0.054005,94467.0,94466.0,0.001]
[1735337638416,0.21173325,94467.0,94466.0,0.001]
[1735337641131,0.054005,94467.0,94466.0,0.001]
[1735337653434,0.1055569,94467.0,94466.0,0.001]
[1735337655437,0.0525519,94467.0,94466.0,0.001]
[1735337657140,0.001,94467.0,94466.0,0.001]
[1735337661344,0.15889672,94467.0,94466.0,0.001]
[1735337662738,0.001,94467.0,94466.0,0.001]
[1735337669039,0.001,94467.0,94466.0,0.19141445]
[1735337669346,0.001,94467.0,94466.0,1.69141445]
[1735337670529,0.001,94467.0,94466.0,1.501]
[1735337671945,0.001,94467.0,94466.0,1.69141445]
[1735337673048,0.001,94467.0,94466.0,1.501]
[1735337674445,0.09464476,94468.0,94466.0,1.501]
[1735337674648,0.01602191,94468.0,94467.0,0.413805]
[1735337675246,0.01602191,94468.0,94467.0,1.913805]
[1735337675648,0.1262542,94472.0,94471.0,0.053003]
[1735337675847,0.18851162,94484.0,94467.0,1.8608]
[1735337675848,0.1262542,94477.0,94476.0,0.053]
[1735337676039,0.1262542,94477.0,94476.0,0.4138]
[1735337677052,0.1262542,94481.0,94480.0,0.052998]
[1735337677450,0.1262542,94481.0,94480.0,0.413798]
[1735337678056,0.1262542,94481.0,94480.0,0.713798]
[1735337678057,0.0645542,94481.0,94480.0,0.713798]
[1735337678244,0.09619672,94487.0,94480.0,0.714798]
[1735337678445,0.09619672,94491.0,94490.0,0.052992]
[1735337680447,0.0392,94510.0,94498.0,0.052987]
[1735337680645,0.0392,94510.0,94499.0,0.3608]
[1735337681948,0.0392,94510.0,94499.0,0.3618]
[1735337683464,0.00158756,94519.0,94499.0,0.3628]
[1735337684053,0.00158756,94519.0,94499.0,0.6628]
[1735337684554,0.00158756,94519.0,94499.0,0.6618]
[1735337685658,0.00158756,94519.0,94499.0,0.3618]
[1735337686261,0.00158756,94519.0,94518.0,0.052976]
[1735337686453,0.00158756,94519.0,94518.0,0.413776]
[1735337686658,0.0385,94523.0,94522.0,0.052974]
[1735337687654,0.0386,94528.0,94527.0,0.052971]
[1735337687853,0.0386,94528.0,94527.0,0.413771]
[1735337689476,0.0386,94528.0,94527.0,1.913771]
[1735337690272,0.0386,94528.0,94527.0,1.915771]
[1735337690674,0.0386,94528.0,94527.0,0.415771]
[1735337691770,0.0386,94528.0,94527.0,0.414771]
[1735337695178,0.0386,94528.0,94527.0,0.053971]
[1735337695374,0.3994,94528.0,94512.0,0.3608]
[1735337695575,0.052977,94517.0,94515.0,0.052978]
[1735337695872,0.3994,94528.0,94508.0,0.18962418]
[1735337695873,0.3608,94516.0,94508.0,0.18962418]
[1735337696076,0.052978,94515.0,94509.0,0.052981]
[1735337696266,0.052978,94515.0,94508.0,0.18962418]
[1735337696465,0.052978,94515.0,94513.0,0.052979]
[1735337698279,0.3608,94516.0,94513.0,0.052979]
[1735337698280,0.3608,94516.0,94515.0,0.052978]
[1735337699783,0.3608,94516.0,94515.0,1.552978]
[1735337699973,0.052975,94521.0,94515.0,1.5]
[1735337700281,0.052975,94521.0,94518.0,0.052976]
[1735337700481,0.052975,94520.0,94515.0,0.00172]
[1735337700671,0.052975,94520.0,94515.0,0.001]
[1735337702078,0.052975,94520.0,94518.0,0.052976]
[1735337702580,0.052975,94520.0,94518.0,0.053976]
[1735337702780,0.052975,94520.0,94518.0,0.001]
[1735337703180,0.052976,94519.0,94518.0,0.001]
[1735337704479,0.053976,94519.0,94518.0,0.001]
[1735337706181,0.054976,94519.0,94518.0,0.001]
[1735337706883,0.002,94519.0,94518.0,0.001]
[1735337708780,0.052974,94523.0,94510.0,0.01466635]
[1735337709082,0.002,94519.0,94518.0,0.001]
[1735337712796,0.052984,94504.0,94503.0,0.00158712]
[1735337712978,0.052989,94495.0,94494.0,0.18962418]
[1735337713988,0.052989,94495.0,94482.0,0.3608]
[1735337714190,0.052996,94483.0,94482.0,0.3608]
[1735337715795,0.053996,94483.0,94482.0,0.3608]
[1735337717681,0.001,94483.0,94479.0,0.42732]
[1735337717884,0.052997,94482.0,94479.0,0.42732]
[1735337718793,0.052997,94482.0,94480.0,1.5]
[1735337720089,0.053001,94474.0,94473.0,0.0382]
[1735337721594,0.053002,94472.0,94471.0,0.00158755]
[1735337721788,0.413802,94472.0,94471.0,0.00158755]
[1735337722395,0.413802,94472.0,94454.0,0.18962418]
[1735337722396,0.6608,94472.0,94454.0,0.18962418]
[1735337722594,0.053012,94455.0,94454.0,0.18962418]
[1735337723289,0.0827,94460.0,94444.0,0.18962418]
[1735337723290,0.053017,94445.0,94444.0,0.18962418]
[1735337725101,0.053021,94438.0,94437.0,0.0385]
[1735337726601,0.053021,94438.0,94437.0,0.0395]
[1735337730405,0.053021,94438.0,94437.0,0.001]
[1735337740004,0.05303,94423.0,94422.0,0.039]
[1735337740194,0.05303,94423.0,94421.0,0.00158856]
[1735337740601,0.3608,94427.0,94411.0,0.0409]
[1735337740799,0.053035,94413.0,94411.0,0.0409]
[1735337741298,0.043035,94413.0,94411.0,0.0409]
[1735337741708,0.043035,94413.0,94412.0,0.007]
[1735337743598,0.043035,94413.0,94412.0,0.01]
[1735337743805,0.044035,94413.0,94412.0,0.003]
[1735337745011,0.044035,94413.0,94412.0,0.009]
[1735337745806,0.413832,94419.0,94412.0,0.009]
[1735337746004,0.413832,94419.0,94415.0,0.053034]
[1735337746405,0.053032,94419.0,94416.0,0.3608]
[1735337746620,0.3608,94437.0,94416.0,0.3608]
[1735337746825,0.053027,94428.0,94421.0,0.05303]
[1735337747008,0.3608,94422.0,94412.0,0.009]
[1735337747208,0.053042,94401.0,94399.0,0.02377418]
[1735337747512,0.053048,94390.0,94389.0,0.28558069]
[1735337747813,0.053059,94371.0,94365.0,0.0397]
[1735337748013,0.413859,94371.0,94365.0,0.0397]
[1735337748211,0.774659,94371.0,94365.0,0.0397]
[1735337749304,0.7216,94371.0,94365.0,0.0397]
[1735337749506,0.053062,94366.0,94365.0,0.0397]
[1735337749911,0.72216001,94371.0,94365.0,0.0397]
[1735337750108,0.7236,94371.0,94365.0,0.0397]
[1735337750312,0.7286,94371.0,94365.0,0.0397]
[1735337750711,0.7266,94371.0,94365.0,0.0397]
[1735337750911,0.003,94366.0,94365.0,0.0397]
[1735337751505,0.05306,94368.0,94365.0,0.0397]
[1735337752319,0.002,94366.0,94365.0,0.0397]
[1735337753210,0.003,94366.0,94365.0,0.0397]
[1735337753417,0.003,94366.0,94365.0,1.5397]
[1735337753720,0.001,94366.0,94365.0,1.5397]
[1735337754417,0.003,94366.0,94365.0,1.5397]
[1735337754823,0.003,94366.0,94365.0,0.0397]
[1735337755313,0.003,94366.0,94365.0,1.5397]
[1735337756319,0.003,94366.0,94365.0,0.0397]
[1735337757618,0.36136001,94371.0,94370.0,0.053059]
[1735337757818,0.413842,94402.0,94384.0,0.053051]
[1735337758020,0.3608,94402.0,94392.0,0.10825139]
[1735337758220,0.3608,94402.0,94400.0,0.053042]
[1735337758819,0.00158975,94409.0,94408.0,0.053038]
[1735337759922,0.00558975,94409.0,94408.0,0.054038]
[1735337760626,0.00458975,94409.0,94408.0,0.053038]
[1735337761121,0.3608,94412.0,94408.0,0.001]
[1735337761312,0.3608,94412.0,94411.0,0.053036]
[1735337761717,0.053031,94421.0,94410.0,0.0407]
[1735337761912,0.053031,94421.0,94415.0,0.053034]
[1735337762123,0.3608,94423.0,94410.0,0.14895139]
[1735337762331,0.3608,94423.0,94422.0,0.05303]
[1735337762626,0.3608,94433.0,94415.0,0.3608]
[1735337762814,0.05302,94441.0,94425.0,0.3608]
[1735337763017,0.3608,94453.0,94433.0,0.3608]
[1735337763214,0.053015,94450.0,94443.0,0.053018]
[1735337764019,0.053016,94448.0,94443.0,0.053018]
[1735337765113,0.053017,94445.0,94443.0,0.001]
[1735337765317,0.3608,94444.0,94443.0,0.001]
[1735337765517,0.3608,94444.0,94443.0,0.002]
[1735337765818,0.3608,94444.0,94443.0,0.00048044]
[1735337766222,0.053019,94443.0,94428.0,0.3608]
[1735337766421,0.053024,94434.0,94425.0,0.01311136]
[1735337766721,0.05302,94441.0,94437.0,0.053021]
[1735337768322,0.36136001,94444.0,94432.0,0.3608]
[1735337768518,0.053021,94438.0,94437.0,0.001]
[1735337768718,0.053021,94438.0,94437.0,0.002]
[1735337769328,0.053021,94438.0,94437.0,0.001]
[1735337769932,0.053021,94438.0,94433.0,0.053024]
[1735337770526,0.062021,94438.0,94437.0,0.001]
[1735337770729,0.062021,94438.0,94437.0,0.002]
[1735337771026,0.065021,94438.0,94437.0,0.001]
[1735337771527,0.056021,94438.0,94437.0,0.001]
[1735337771732,0.065021,94438.0,94437.0,0.002]
[1735337772231,0.065021,94438.0,94437.0,0.001]
[1735337772232,0.062021,94438.0,94437.0,0.001]
[1735337772431,0.064021,94438.0,94437.0,0.001]
[1735337779331,0.011,94438.0,94436.0,0.053022]
[1735337779525,0.064021,94438.0,94437.0,0.001]
[1735337779933,0.002,94438.0,94429.0,0.053026]
[1735337780127,0.064021,94438.0,94437.0,0.001]
[1735337780532,0.002,94438.0,94430.0,0.053025]
[1735337780727,0.011,94438.0,94430.0,0.053025]
[1735337780940,0.053033,94417.0,94413.0,0.053035]
[1735337781138,0.053037,94410.0,94409.0,0.0128078]
[1735337781438,0.053037,94410.0,94408.0,0.053038]
[1735337782237,0.055037,94410.0,94408.0,0.053038]
[1735337783340,0.064037,94410.0,94408.0,0.054038]
[1735337789350,0.11801232,94415.0,94414.0,0.053035]
[1735337789542,0.09813619,94415.0,94414.0,0.053035]
[1735337789739,0.15756335,94421.0,94420.0,0.053031]
[1735337789940,0.15756335,94421.0,94420.0,0.413831]
[1735337790143,0.27356716,94437.0,94425.0,0.053028]
[1735337790555,0.053022,94437.0,94431.0,0.053025]
[1735337790758,0.053022,94437.0,94432.0,0.053024]
[1735337791461,0.053022,94437.0,94428.0,0.3608]
[1735337791652,0.053022,94437.0,94433.0,0.053023]
[1735337792263,0.055022,94437.0,94433.0,0.053023]
[1735337792452,0.002,94437.0,94435.0,0.053022]
[1735337792653,0.006,94437.0,94435.0,0.053022]
[1735337792853,0.01215424,94436.0,94435.0,0.053022]
[1735337793864,0.01215424,94436.0,94435.0,0.054022]
[1735337794062,0.24152462,94454.0,94435.0,0.054022]
[1735337794262,0.24152462,94454.0,94447.0,0.053016]
[1735337794660,0.053013,94454.0,94447.0,0.053016]
[1735337794965,0.053008,94462.0,94444.0,0.3608]
[1735337795161,0.053008,94462.0,94445.0,0.0407]
[1735337795364,0.053008,94462.0,94454.0,0.053012]
[1735337795957,0.09437036,94456.0,94454.0,0.053012]
[1735337797058,0.09437036,94457.0,94456.0,0.053011]
[1735337798361,0.09437036,94462.0,94458.0,0.05301]
[1735337799666,0.36136001,94463.0,94458.0,0.05301]
[1735337799868,0.004,94462.0,94458.0,0.05401]
[1735337800762,0.053009,94460.0,94458.0,0.001]
[1735337800963,0.304,94462.0,94431.0,0.00158823]
[1735337801160,0.053024,94433.0,94431.0,0.00158823]
[1735337801362,0.3608,94442.0,94440.0,0.05302]
[1735337801565,0.3608,94449.0,94438.0,0.3608]
[1735337801766,0.36536001,94462.0,94446.0,0.3608]
[1735337801963,0.36536001,94462.0,94458.0,0.001]
[1735337801964,0.417808,94462.0,94458.0,0.001]
[1735337802471,0.004,94460.0,94459.0,0.053009]
[1735337803070,0.3608,94462.0,94458.0,0.001]
[1735337803071,0.3648,94462.0,94458.0,0.001]
[1735337803263,0.3648,94462.0,94459.0,0.053009]
[1735337803665,0.004,94460.0,94459.0,0.054009]
[1735337804364,0.004,94460.0,94459.0,0.055009]
[1735337805164,0.004,94460.0,94459.0,0.054009]
[1735337805360,0.09425794,94461.0,94459.0,0.054009]
[1735337805963,0.005,94460.0,94459.0,0.055009]
[1735337806464,0.09425794,94461.0,94459.0,0.054009]
[1735337806671,0.058008,94461.0,94459.0,0.054009]
[1735337806871,0.058008,94461.0,94459.0,0.055009]
[1735337807065,0.005,94460.0,94459.0,0.055009]
[1735337807872,0.005,94460.0,94459.0,0.002]
[1735337808173,0.053015,94450.0,94446.0,0.3608]
[1735337808475,0.3608,94453.0,94442.0,0.053019]
[1735337808670,0.3608,94445.0,94427.0,0.0413]
[1735337808972,0.3608,94435.0,94433.0,0.053024]
[1735337810968,0.3618,94435.0,94433.0,0.053024]
[1735337812364,0.3688,94435.0,94433.0,0.054024]
[1735337812766,0.3608,94435.0,94433.0,0.054024]
[1735337812977,0.3688,94435.0,94433.0,0.054024]
[1735337816578,0.46305794,94435.0,94434.0,1.5]
[1735337816982,0.10225794,94435.0,94434.0,1.5]
[1735337817279,0.10225794,94435.0,94433.0,0.054024]
[1735337818079,0.008,94435.0,94433.0,0.054024]
[1735337818480,0.008,94435.0,94434.0,1.5]
[1735337818685,0.001,94435.0,94433.0,0.053024]
[1735337819071,0.007,94435.0,94434.0,0.001]
[1735337819376,0.007,94435.0,94433.0,0.053024]
[1735337819377,0.007,94435.0,94433.0,0.054024]
[1735337819586,0.10025794,94435.0,94433.0,0.054024]
[1735337819881,0.10125794,94435.0,94433.0,0.054024]
[1735337820375,0.10025794,94435.0,94434.0,0.001]
[1735337820581,0.10125794,94435.0,94434.0,0.0419]
[1735337821872,0.10125794,94435.0,94434.0,0.0409]
[1735337822587,0.10125794,94435.0,94434.0,0.4027]
[1735337822776,0.007,94435.0,94434.0,0.4027]
[1735337823786,0.00202656,94435.0,94434.0,0.4027]
[1735337823982,0.07880118,94437.0,94434.0,0.4027]
[1735337824177,0.07360118,94437.0,94435.0,0.091223]
[1735337824577,0.07360118,94437.0,94436.0,0.0392]
[1735337825178,0.07960118,94437.0,94436.0,0.0392]
[1735337825672,0.15749885,94446.0,94436.0,0.0392]
[1735337825876,0.15749885,94446.0,94444.0,0.053018]
[1735337826076,0.15749885,94454.0,94444.0,0.053018]
[1735337826378,0.15749885,94454.0,94453.0,0.053013]
[1735337827976,0.15749885,94459.0,94458.0,0.05301]
[1735337829279,0.15749885,94461.0,94453.0,1.50088]
[1735337829584,0.15749885,94461.0,94460.0,0.053009]
[1735337830080,0.053009,94460.0,94458.0,0.002]
[1735337830281,0.053019,94441.0,94440.0,0.05302]
[1735337830883,0.3608,94444.0,94435.0,0.01239426]
[1735337831083,0.3608,94444.0,94436.0,0.053022]
[1735337831280,0.3608,94444.0,94435.0,0.01239426]
[1735337831474,0.3608,94444.0,94442.0,0.053019]
[1735337832184,0.053018,94443.0,94442.0,0.053019]
[1735337832885,0.053021,94439.0,94437.0,0.053022]
[1735337834380,0.001,94443.0,94441.0,0.053019]
[1735337835076,0.002,94443.0,94442.0,0.001]
[1735337835476,0.41437801,94444.0,94441.0,0.053019]
[1735337835676,0.002,94443.0,94441.0,0.054019]
[1735337835877,0.003,94443.0,94441.0,0.054019]
[1735337836180,0.003,94443.0,94442.0,0.001]
[1735337836578,0.002,94443.0,94442.0,0.001]
[1735337836780,0.36240001,94444.0,94443.0,0.053018]
[1735337836985,0.001,94444.0,94443.0,0.053018]
[1735337837793,0.001,94444.0,94443.0,1.553018]
[1735337838089,0.18851162,94448.0,94443.0,1.553018]
[1735337838386,0.18851162,94448.0,94447.0,0.053016]
[1735337838776,0.3608,94462.0,94443.0,1.553618]
[1735337838980,0.3608,94462.0,94460.0,0.053009]
[1735337839890,0.05155438,94461.0,94460.0,0.053009]
[1735337840588,0.05155438,94461.0,94448.0,0.053015]
[1735337840889,0.05155438,94461.0,94460.0,0.053009]
[1735337841276,0.05155438,94461.0,94460.0,0.054009]
[1735337842384,0.05255438,94461.0,94460.0,0.055009]
[1735337842584,0.001,94461.0,94460.0,0.055009]
[1735337843177,0.002,94461.0,94460.0,0.414809]
[1735337843484,0.002,94461.0,94460.0,0.452709]
[1735337843794,0.002,94461.0,94460.0,1.952709]
[1735337844293,0.0413,94478.0,94460.0,1.952709]
[1735337844591,0.0413,94478.0,94477.0,0.052999]
[1735337845495,0.0433,94478.0,94477.0,0.052999]
[1735337845791,0.0433,94478.0,94477.0,0.053999]
[1735337846693,0.0433,94478.0,94477.0,0.054999]
[1735337848190,0.4041,94478.0,94477.0,0.054999]
[1735337848387,0.4041,94478.0,94477.0,0.002]
[1735337851695,0.4041,94478.0,94460.0,0.10825139]
[1735337851696,0.053005,94468.0,94465.0,0.053006]
[1735337852300,0.3608,94466.0,94465.0,0.053006]
[1735337852796,0.3608,94466.0,94465.0,0.054006]
[1735337854390,0.3618,94466.0,94465.0,0.054006]
[1735337854799,0.3618,94466.0,94465.0,0.055006]
[1735337855198,0.3618,94466.0,94465.0,0.054006]
[1735337855495,0.3638,94466.0,94465.0,0.055006]
[1735337862702,0.003,94466.0,94465.0,0.055006]
[1735337863104,0.003,94466.0,94465.0,1.555006]
[1735337867509,0.002,94466.0,94465.0,1.554006]
[1735337868005,0.001,94466.0,94465.0,1.553006]
[1735337868206,0.002,94466.0,94465.0,1.554006]
[1735337868406,0.002,94466.0,94465.0,1.74431289]
[1735337868603,0.001,94466.0,94465.0,1.74331289]
[1735337868797,0.002,94466.0,94465.0,1.74431289]
[1735337870512,0.002,94466.0,94465.0,0.054006]
[1735337872907,0.002,94466.0,94465.0,1.554006]
[1735337875512,0.12798066,94466.0,94465.0,1.554006]
[1735337879810,0.002,94466.0,94465.0,1.554006]
[1735337885123,0.12598066,94477.0,94476.0,0.053]
[1735337885913,0.12598066,94477.0,94476.0,1.553]
[1735337886719,0.12598066,94478.0,94476.0,1.553]
[1735337886919,0.12598066,94478.0,94476.0,1.554]
[1735337887624,0.08605166,94478.0,94476.0,1.554]
[1735337887814,0.15761725,94484.0,94483.0,0.052996]
[1735337889722,0.15761725,94484.0,94483.0,1.552996]
[1735337889923,0.15761725,94498.0,94492.0,0.052991]
[1735337891027,0.15761725,94496.0,94492.0,0.054991]
[1735337891527,0.15761725,94496.0,94492.0,0.053991]
[1735337891726,0.15761725,94496.0,94492.0,0.054991]
[1735337892227,0.1,94500.0,94492.0,0.054991]
[1735337892228,0.15761725,94498.0,94492.0,0.054991]
[1735337892926,0.15761725,94498.0,94492.0,1.553991]
[1735337893126,0.15761725,94498.0,94492.0,1.5655834]
[1735337893726,0.1,94500.0,94492.0,1.5655834]
[1735337895027,0.05299,94494.0,94492.0,0.0125924]
[1735337895230,0.052992,94490.0,94489.0,0.3608]
[1735337895522,0.06188792,94493.0,94492.0,0.052991]
[1735337897129,0.06188792,94493.0,94492.0,0.053991]
[1735337897529,0.11487792,94493.0,94492.0,0.001]
[1735337900319,0.11487792,94493.0,94492.0,0.053991]
[1735337901334,0.06188792,94493.0,94492.0,0.053991]
[1735337903427,0.00158792,94493.0,94492.0,0.053991]
[1735337903728,0.15761725,94499.0,94498.0,0.052987]
[1735337903923,0.09885371,94499.0,94498.0,0.413787]
[1735337904329,0.1,94500.0,94498.0,0.413787]
[1735337905331,0.00231371,94503.0,94502.0,0.052985]
[1735337905530,0.32293704,94533.0,94523.0,0.052973]
[1735337905726,0.36238735,94524.0,94523.0,0.052973]
[1735337906333,0.32293704,94533.0,94532.0,0.052968]
[1735337906539,0.1338,94533.0,94532.0,0.052968]
[1735337907424,0.0679,94533.0,94532.0,0.052968]
[1735337909130,0.0679,94533.0,94532.0,0.053968]
[1735337909342,0.0689,94533.0,94532.0,0.054968]
[1735337909938,0.0689,94533.0,94532.0,0.002]
[1735337910338,0.052976,94518.0,94515.0,0.3608]
[1735337910541,0.0658,94517.0,94515.0,0.3608]
[1735337910848,0.0658,94517.0,94515.0,0.37206335]
[1735337911729,0.0658,94517.0,94515.0,0.42504135]
[1735337912339,0.0658,94517.0,94515.0,0.42604135]
[1735337913249,0.0668,94517.0,94515.0,0.42604135]
[1735337913443,0.0688,94517.0,94515.0,0.42604135]
[1735337914451,0.003,94517.0,94515.0,0.42604135]
[1735337932044,0.18913704,94536.0,94533.0,0.052968]
[1735337932853,0.052964,94540.0,94533.0,0.052968]
[1735337933155,0.3638,94534.0,94533.0,0.054968]
[1735337936260,0.3618,94534.0,94533.0,0.054968]
[1735337936649,0.3608,94534.0,94533.0,0.002]
[1735337941262,0.3608,94534.0,94533.0,0.00055304]
[1735337941957,0.052971,94528.0,94527.0,0.19005755]
[1735337943059,0.053971,94528.0,94527.0,0.19005755]
[1735337943361,0.052974,94522.0,94521.0,0.01128911]
[1735337943562,0.3608,94524.0,94518.0,0.052976]
[1735337943750,0.052976,94520.0,94518.0,0.052976]
[1735337944954,0.054976,94520.0,94518.0,0.053976]
[1735337946254,0.055976,94520.0,94518.0,0.053976]
[1735337946656,0.24594025,94520.0,94518.0,0.053976]
[1735337949557,0.18996425,94519.0,94518.0,0.053976]
[1735337950755,0.21417431,94520.0,94518.0,0.053976]
[1735337950952,0.052983,94506.0,94505.0,0.19005755]
[1735337952062,0.052985,94503.0,94501.0,0.06451339]
[1735337953355,0.053985,94503.0,94501.0,0.06451339]
[1735337954263,0.055985,94503.0,94501.0,0.06451339]
[1735337955863,0.003,94503.0,94502.0,0.3608]
[1735337956162,0.003,94503.0,94502.0,0.5598]
[1735337956368,0.003,94503.0,94502.0,0.199]
[1735337957656,0.003,94503.0,94502.0,0.5598]
[1735337958358,0.002,94503.0,94502.0,0.5598]
[1735337958558,0.003,94503.0,94502.0,0.5598]
[1735337961772,0.003,94503.0,94502.0,0.199]
[1735337962665,0.003,94503.0,94502.0,0.5598]
[1735337966775,0.12647031,94513.0,94512.0,0.05298]
[1735337967277,0.15819831,94516.0,94515.0,0.052978]
[1735337968366,0.002,94513.0,94512.0,0.05398]
[1735337968568,0.002,94513.0,94512.0,0.41478]
[1735337969779,0.12662476,94522.0,94512.0,0.3608]
[1735337969974,0.12662476,94522.0,94521.0,0.413775]
[1735337971484,0.12662476,94527.0,94521.0,0.3618]
[1735337971683,0.12662476,94527.0,94526.0,0.052972]
[1735337973882,0.36136001,94529.0,94528.0,0.052971]
[1735337974089,0.3608,94529.0,94528.0,0.052971]
[1735337976278,0.3608,94529.0,94528.0,0.053971]
[1735337979090,0.12662476,94535.0,94534.0,0.052967]
[1735337979883,0.12662476,94536.0,94534.0,0.052967]
[1735337980187,0.15819831,94542.0,94541.0,0.052963]
[1735337981284,0.15819831,94547.0,94544.0,0.052962]
[1735337981993,0.15819831,94547.0,94545.0,0.052961]
[1735337982380,0.0623,94548.0,94545.0,0.052961]
[1735337982782,0.0623,94548.0,94546.0,0.05296]
[1735337984194,0.0623,94548.0,94546.0,0.05396]
[1735337984886,0.0623,94548.0,94546.0,0.05496]
[1735337986596,0.0623,94548.0,94546.0,0.06621866]
[1735337992899,0.0623,94548.0,94546.0,0.42701866]
[1735337997493,0.51948567,94560.0,94546.0,0.42701866]
[1735337997694,0.51948567,94560.0,94553.0,0.052957]
[1735337997895,0.51948567,94560.0,94559.0,0.052953]
[1735337998101,0.15812566,94560.0,94559.0,0.052953]
[1735337998402,0.3608,94563.0,94553.0,0.052957]
[1735337998403,0.3608,94563.0,94562.0,0.052952]
[1735337998602,0.1232,94565.0,94553.0,0.052957]
[1735337998801,0.1232,94565.0,94564.0,0.05295]
[1735338000603,0.1232,94565.0,94564.0,0.05495]
[1735338002299,0.0619,94565.0,94564.0,0.05495]
[1735338004900,0.0619,94565.0,94564.0,0.06575493]
[1735338007306,0.22016132,94565.0,94564.0,0.06575493]
[1735338007609,0.22016132,94565.0,94564.0,0.01280493]
[1735338007999,0.22016132,94565.0,94564.0,0.06575493]
[1735338008696,0.15826132,94565.0,94564.0,0.06575493]
[1735338010109,0.052949,94567.0,94566.0,0.052949]
[1735338010501,0.25041557,94569.0,94564.0,0.01280493]
[1735338010709,0.30336357,94569.0,94568.0,0.052948]
[1735338011112,0.24286357,94569.0,94568.0,0.052948]
[1735338011807,0.052948,94569.0,94568.0,0.052948]
[1735338012500,0.052948,94569.0,94568.0,0.053948]
[1735338013114,0.052948,94569.0,94568.0,0.054948]
[1735338013714,0.052948,94569.0,94568.0,0.053948]
[1735338013905,0.052948,94569.0,94568.0,0.054948]
[1735338014604,0.052948,94569.0,94568.0,0.053948]
[1735338014802,0.052948,94569.0,94568.0,0.054948]
[1735338016498,0.36136001,94571.0,94568.0,0.002]
[1735338016701,0.3608,94571.0,94570.0,0.052947]
[1735338018208,0.3608,94571.0,94570.0,0.053947]
[1735338018408,0.3608,94571.0,94570.0,0.054947]
[1735338019611,0.00158678,94572.0,94570.0,0.053947]
[1735338019817,0.00158678,94572.0,94570.0,0.054947]
[1735338021211,0.00158678,94572.0,94570.0,0.053947]
[1735338021414,0.00158678,94572.0,94570.0,0.054947]